bitfinex/quotes_SOLUSD_20251018
["timestamp","ask_amount","ask_price","bid_price","bid_amount"]
[1760823943637,3.59660515,187.38,187.36,6.05731853]
[1760823943938,3.59672342,187.37,187.34,8.80047787]
[1760823944121,102.1,187.38,187.35,0.65]
[1760823944440,3.59684147,187.37,187.36,0.65]
[1760823945036,3.59684147,187.37,187.34,9.45047787]
[1760823945242,102.1,187.38,187.35,0.65]
[1760823945541,3.59835489,187.37,187.35,0.65]
[1760823945737,102.1,187.38,187.35,0.65]
[1760823945938,3.59835424,187.37,187.35,0.65]
[1760823946246,3.59835424,187.36,187.35,0.65]
[1760823946640,3.59835424,187.36,187.34,5.98761763]
[1760823946951,102.1,187.38,187.35,0.65]
[1760823947153,3.6000455,187.37,187.35,0.65]
[1760823947337,3.6000455,187.36,187.35,0.65]
[1760823947532,3.6000455,187.36,187.34,5.33761763]
[1760823947735,3.6000455,187.35,187.34,5.33761763]
[1760823948447,3.6000455,187.35,187.34,5.98761763]
[1760823951737,3.6000455,187.35,187.34,9.45047787]
[1760823957660,3.6000455,187.35,187.34,4.11286024]
[1760823957835,3.6000455,187.35,187.32,3.46286024]
[1760823958163,3.6000455,187.34,187.32,3.46286024]
[1760823958349,0.35,187.35,187.31,4.11286024]
[1760823958558,3.60161819,187.34,187.31,9.45158315]
[1760823958747,0.35,187.35,187.31,9.45158315]
[1760823958943,0.35,187.35,187.31,8.80158315]
[1760823958944,3.60161819,187.34,187.31,8.80158315]
[1760823959259,0.35,187.35,187.32,0.65]
[1760823959450,3.60138239,187.34,187.31,5.33872291]
[1760823959662,3.60138239,187.33,187.31,5.33872291]
[1760823959842,102.1,187.33,187.31,5.33872291]
[1760823961238,102.1,187.33,187.3,9.00182675]
[1760823961440,102.1,187.33,187.3,9.65182675]
[1760823961640,102.1,187.32,187.3,6.18896651]
[1760823962057,102.1,187.32,187.3,0.2]
[1760823963456,3.5998257,187.31,187.3,0.2]
[1760823963950,3.9498257,187.31,187.3,0.2]
[1760823967651,7.41268594,187.31,187.3,0.2]
[1760823970462,18.28916115,187.31,187.3,0.2]
[1760823971370,23.6279044,187.31,187.3,0.2]
[1760823974572,14.47630091,187.31,187.3,0.2]
[1760823974776,14.47630091,187.31,187.3,0.9]
[1760823975271,3.5998257,187.31,187.3,0.9]
[1760823975580,7.06268594,187.32,187.3,0.2]
[1760823975787,3.5998257,187.31,187.3,0.2]
[1760823976362,7.06268594,187.31,187.3,0.2]
[1760823976674,3.46286024,187.31,187.3,0.2]
[1760823976883,7.06268594,187.31,187.3,0.2]
[1760823977065,3.46286024,187.31,187.3,0.2]
[1760823977383,7.06268594,187.31,187.3,0.2]
[1760823977684,7.06268594,187.32,187.3,0.2]
[1760823977867,3.5998257,187.31,187.3,0.2]
[1760823978069,3.5998257,187.31,187.3,0.9]
[1760823978380,7.06268594,187.32,187.3,0.2]
[1760823979081,3.46286024,187.31,187.3,0.2]
[1760823979282,3.5998257,187.31,187.3,0.2]
[1760823979483,7.06268594,187.32,187.3,0.2]
[1760823979678,3.46286024,187.31,187.3,0.2]
[1760823981283,3.5998257,187.31,187.3,0.9]
[1760823981487,3.5998257,187.33,187.3,0.9]
[1760823981782,3.46286024,187.34,187.31,0.7]
[1760823982082,39.09606281,187.37,187.31,0.7]
[1760823982083,3.46286024,187.35,187.31,0.7]
[1760823982279,3.58505928,187.34,187.31,0.7]
[1760823982482,3.46286024,187.35,187.31,0.7]
[1760823982681,7.04791952,187.35,187.31,0.7]
[1760823982887,3.46286024,187.35,187.31,0.7]
[1760823983186,7.04791952,187.35,187.31,0.7]
[1760823983388,3.46286024,187.35,187.32,5.33845825]
[1760823983562,7.04791952,187.35,187.33,0.7]
[1760823983763,3.46286024,187.35,187.33,0.7]
[1760823984067,3.58505928,187.35,187.33,0.7]
[1760823984684,3.46286024,187.35,187.33,0.7]
[1760823986485,3.58765804,187.34,187.33,0.7]
[1760823987188,3.58765804,187.34,187.32,0.7]
[1760823987495,3.46286024,187.35,187.33,0.7]
[1760823987675,3.5884914,187.34,187.33,0.7]
[1760823987863,3.5884914,187.34,187.31,5.33874325]
[1760823988060,3.46286024,187.35,187.31,5.33874325]
[1760823988399,3.58849227,187.34,187.32,0.7]
[1760823988572,3.58849227,187.33,187.32,0.7]
[1760823988895,3.58849227,187.34,187.32,0.7]
[1760823989068,3.58849227,187.33,187.32,0.7]
[1760823989792,7.05135251,187.33,187.3,0.2]
[1760823989983,0.35,187.37,187.31,0.7]
[1760823990185,3.46286024,187.35,187.31,0.7]
[1760823990367,3.58972852,187.34,187.31,0.7]
[1760823990573,3.58972852,187.33,187.31,0.7]
[1760823990893,3.46286024,187.34,187.31,0.7]
[1760823991093,3.59021662,187.33,187.31,0.7]
[1760823991297,3.46286024,187.34,187.31,0.7]
[1760823991616,3.59068105,187.33,187.31,0.7]
[1760823991781,3.46286024,187.34,187.31,0.7]
[1760823992084,3.59068134,187.33,187.3,5.53878564]
[1760823992281,3.46286024,187.34,187.32,0.7]
[1760823992483,3.59114453,187.33,187.32,0.7]
[1760824011405,3.59114453,187.33,187.3,0.2]
[1760824011606,7.05400477,187.32,187.3,0.2]
[1760824011809,3.59114453,187.31,187.3,0.2]
[1760824016911,3.46286024,187.32,187.3,0.2]
[1760824017221,3.60009471,187.31,187.3,0.2]
[1760824017838,7.06295495,187.31,187.3,0.2]
[1760824022028,11.56307334,187.31,187.3,0.2]
[1760824026232,7.06295495,187.31,187.3,0.2]
[1760824027726,46.15817341,187.31,187.3,0.2]
[1760824027914,50.6582918,187.31,187.3,0.2]
[1760824028428,47.19543156,187.31,187.3,0.2]
[1760824028815,50.6582918,187.31,187.3,0.2]
[1760824029016,47.19543156,187.31,187.3,0.2]
[1760824029224,50.6582918,187.31,187.3,0.2]
[1760824036337,52.7995621,187.31,187.3,0.2]
[1760824050637,48.29944371,187.31,187.3,0.2]
[1760824051355,10.87647521,187.3,187.29,0.2]
[1760824051554,22.43837157,187.3,187.29,0.89]
[1760824051962,27.7793596,187.3,187.29,0.89]
[1760824054358,33.11838789,187.3,187.29,0.89]
[1760824055646,11.56189636,187.3,187.29,0.89]
[1760824055848,7.06295495,187.3,187.29,0.89]
[1760824056366,11.56189636,187.3,187.29,0.89]
[1760824056663,7.06295495,187.3,187.29,0.89]
[1760824057258,3.60009471,187.3,187.29,0.89]
[1760824058462,3.60009471,187.3,187.29,6.22931336]
[1760824058770,3.60009471,187.3,187.29,15.0326123]
[1760824063349,3.46286024,187.34,187.29,15.0326123]
[1760824063562,3.60113793,187.33,187.3,6.03892242]
[1760824063860,105.70113793,187.32,187.31,0.7]
[1760824067368,105.65712923,187.32,187.31,0.7]
[1760824067876,105.65712923,187.32,187.3,5.33892242]
[1760824068078,102.1,187.32,187.3,6.03892242]
[1760824068379,102.1,187.32,187.31,0.7]
[1760824071884,105.56286024,187.32,187.31,0.7]
[1760824073864,102.1,187.32,187.31,0.7]
[1760824075590,102.1,187.32,187.3,5.33892242]
[1760824075795,102.1,187.32,187.3,6.03892242]
[1760824075979,102.1,187.32,187.31,0.7]
[1760824076591,102.1,187.32,187.31,6.03874325]
[1760824077981,102.1,187.32,187.3,5.33902829]
[1760824078182,102.1,187.32,187.3,6.03902829]
[1760824079192,102.1,187.32,187.31,0.7]
[1760824079394,105.69588079,187.32,187.31,0.7]
[1760824080694,102.1,187.32,187.31,0.7]
[1760824080998,105.69586036,187.32,187.31,0.7]
[1760824090314,105.69586036,187.32,187.3,5.33902829]
[1760824090518,102.1,187.32,187.31,0.67]
[1760824090817,105.6971377,187.32,187.31,0.67]
[1760824095399,105.6971377,187.32,187.31,0.72]
[1760824099014,105.6971377,187.32,187.31,6.05874325]
[1760824099721,105.6971377,187.32,187.31,9.52160349]
[1760824100320,105.70335732,187.32,187.31,22.8700813]
[1760824100916,4.49482545,187.38,187.31,36.21693944]
[1760824101104,3.60327995,187.37,187.33,3.46286024]
[1760824101304,3.60327995,187.36,187.34,0.72]
[1760824101509,3.60327995,187.35,187.34,0.72]
[1760824102416,3.60327995,187.35,187.34,6.05788833]
[1760824102623,3.60327995,187.35,187.34,9.52074857]
[1760824102810,102.1,187.39,187.34,38.91640435]
[1760824103012,3.60278968,187.38,187.35,0.72]
[1760824103213,3.60278968,187.37,187.35,0.72]
[1760824103408,102.1,187.39,187.36,3.46286024]
[1760824103720,3.60114322,187.38,187.37,0.72]
[1760824104528,3.60114322,187.38,187.37,6.05703367]
[1760824106626,3.60114322,187.38,187.37,22.10453427]
[1760824107027,3.46286024,187.42,187.37,35.44711846]
[1760824107328,3.59510169,187.41,187.38,0.72]
[1760824107529,3.59510169,187.4,187.38,0.72]
[1760824107722,105.56286024,187.43,187.38,0.72]
[1760824107723,3.59510169,187.39,187.38,0.72]
[1760824108230,3.59510169,187.39,187.38,6.05674885]
[1760824109028,3.59510169,187.39,187.38,22.10339109]
[1760824109212,102.1,187.43,187.38,38.90812346]
[1760824109527,3.59272541,187.42,187.39,4.18286024]
[1760824109730,3.59272541,187.41,187.4,0.72]
[1760824110328,3.59272541,187.42,187.4,6.05617929]
[1760824110511,102.1,187.43,187.41,0.72]
[1760824110714,3.59094498,187.42,187.41,0.72]
[1760824111130,3.59094498,187.42,187.41,6.05589456]
[1760824111710,3.59094498,187.42,187.41,5.33589456]
[1760824112519,3.59094498,187.42,187.41,6.05589456]
[1760824112834,3.59094498,187.42,187.41,5.33589456]
[1760824113222,102.1,187.43,187.41,5.33589456]
[1760824120148,102.1,187.43,187.4,5.33617929]
[1760824120441,102.1,187.43,187.41,0.72]
[1760824121220,102.1,187.43,187.42,5.33560986]
[1760824123542,102.1,187.43,187.38,13.34187213]
[1760824123543,102.1,187.43,187.4,0.7]
[1760824123852,102.1,187.43,187.41,0.7]
[1760824125149,102.1,187.43,187.39,16.04578397]
[1760824125332,102.1,187.43,187.42,0.7]
[1760824125654,102.1,187.43,187.42,6.03560986]
[1760824128450,102.1,187.43,187.4,16.04492579]
[1760824128652,102.1,187.43,187.4,0.7]
[1760824128843,102.1,187.43,187.41,0.7]
[1760824129042,102.1,187.43,187.39,16.04492579]
[1760824129271,102.1,187.43,187.41,0.7]
[1760824129553,102.1,187.43,187.42,0.7]
[1760824136964,102.1,187.43,187.42,6.03560986]
[1760824137363,102.1,187.43,187.42,22.07881957]
[1760824141869,102.1,187.43,187.42,6.03560986]
[1760824142087,105.69087875,187.43,187.42,6.03560986]
[1760824142483,105.69087875,187.43,187.4,5.33589701]
[1760824142688,3.591181,187.42,187.4,5.33589701]
[1760824142976,102.1,187.43,187.4,6.03589701]
[1760824143178,3.59112247,187.42,187.4,6.03589701]
[1760824143394,102.1,187.43,187.4,6.03589701]
[1760824143700,3.59325231,187.42,187.4,6.03589701]
[1760824144000,3.59325231,187.41,187.4,6.03589701]
[1760824145099,3.59325231,187.41,187.39,5.33639046]
[1760824145272,102.45,187.43,187.36,16.74664224]
[1760824145273,3.94325231,187.4,187.36,16.74664224]
[1760824145472,3.59325231,187.39,187.36,16.74664224]
[1760824145683,3.59325231,187.38,187.36,0.7]
[1760824145879,0.35,187.37,187.34,16.04835905]
[1760824146107,7.41077977,187.36,187.3,0.7]
[1760824146416,3.46286024,187.34,187.3,0.7]
[1760824146701,3.59791953,187.33,187.3,0.7]
[1760824146893,3.66286024,187.35,187.29,5.53926207]
[1760824147101,7.41180715,187.34,187.29,6.19926207]
[1760824147405,3.59894691,187.33,187.3,0.66]
[1760824147704,3.81286024,187.34,187.3,0.66]
[1760824147882,3.5978248,187.33,187.3,0.66]
[1760824148209,3.81286024,187.34,187.3,0.66]
[1760824148392,3.59644064,187.33,187.3,0.66]
[1760824148599,3.81286024,187.34,187.3,0.66]
[1760824148783,0.35,187.34,187.3,0.66]
[1760824149085,0.35,187.34,187.3,5.99900348]
[1760824149285,7.47572048,187.35,187.31,0.66]
[1760824149503,3.59502826,187.34,187.31,0.66]
[1760824149691,7.47572048,187.35,187.31,0.66]
[1760824150005,3.59496942,187.34,187.31,0.66]
[1760824150207,7.12572048,187.35,187.3,5.33900348]
[1760824150408,7.40663508,187.34,187.3,5.33900348]
[1760824150618,3.46286024,187.34,187.3,5.33900348]
[1760824150913,3.81286024,187.34,187.3,5.99900348]
[1760824152312,3.81286024,187.34,187.3,5.33900348]
[1760824152497,7.12572048,187.35,187.31,0.66]
[1760824152698,3.5914026,187.34,187.31,0.66]
[1760824152898,7.47572048,187.35,187.31,0.66]
[1760824153105,3.59140173,187.34,187.31,0.66]
[1760824154108,7.47572048,187.35,187.31,0.66]
[1760824155090,0.35,187.34,187.3,6.00900348]
[1760824155895,0.35,187.34,187.3,5.33900348]
[1760824156100,0.35,187.34,187.31,0.67]
[1760824156494,7.40131287,187.35,187.31,0.67]
[1760824157418,3.81286024,187.35,187.31,0.67]
[1760824158312,0.35,187.34,187.3,5.33900348]
[1760824158816,7.39932586,187.35,187.31,0.67]
[1760824159614,3.81286024,187.34,187.29,0.87]
[1760824159794,105.91286024,187.33,187.29,0.87]
[1760824160219,0.35,187.32,187.29,0.2]
[1760824160419,102.1,187.31,187.29,0.2]
[1760824160724,102.1,187.3,187.29,0.2]
[1760824163807,102.1,187.3,187.29,0.87]
[1760824164544,102.1,187.3,187.29,0.2]
[1760824166134,3.46286024,187.32,187.29,0.2]
[1760824166334,3.81286024,187.31,187.29,0.2]
[1760824166732,0.35,187.3,187.29,0.2]
[1760824167544,3.46286024,187.31,187.29,0.2]
[1760824167848,17.92090697,187.3,187.29,0.2]
[1760824168030,23.26133483,187.3,187.29,0.2]
[1760824168226,20.14847459,187.3,187.29,0.2]
[1760824168436,23.61133483,187.3,187.29,0.2]
[1760824168733,28.95036312,187.3,187.29,0.2]
[1760824172331,32.41322336,187.3,187.29,0.2]
[1760824173343,16.2163588,187.27,187.24,0.2]
[1760824173552,3.46286024,187.25,187.24,0.2]
[1760824173951,3.46286024,187.25,187.24,0.87]
[1760824174339,3.46286024,187.25,187.24,0.2]
[1760824174541,3.46286024,187.25,187.24,0.87]
[1760824177748,101.9,187.26,187.24,0.87]
[1760824178048,101.9,187.26,187.24,6.21072809]
[1760824178228,101.9,187.26,187.25,0.67]
[1760824184645,101.9,187.26,187.25,6.01045393]
[1760824185950,101.4,187.26,187.25,6.01045393]
[1760824208175,101.4,187.26,187.25,9.47331417]
[1760824208367,101.4,187.32,187.25,22.82444901]
[1760824208573,104.99868741,187.31,187.26,4.11286024]
[1760824208884,3.59868741,187.3,187.27,0.65]
[1760824209064,101.4,187.31,187.27,0.65]
[1760824209265,3.59895318,187.3,187.27,0.65]
[1760824209473,101.4,187.31,187.27,0.65]
[1760824209671,3.59872032,187.3,187.28,5.33959846]
[1760824209886,101.4,187.31,187.29,0.65]
[1760824210187,3.59871945,187.3,187.29,0.65]
[1760824212077,3.59871945,187.3,187.29,5.33931336]
[1760824212287,3.59871945,187.3,187.29,5.98931336]
[1760824212466,101.4,187.31,187.29,5.98931336]
[1760824212787,101.4,187.31,187.3,0.65]
[1760824214890,101.4,187.31,187.3,5.98902829]
[1760824216598,101.4,187.31,187.3,6.02902829]
[1760824222703,101.4,187.31,187.3,5.33902829]
[1760824223207,101.4,187.31,187.3,6.02902829]
[1760824226616,101.4,187.31,187.3,5.33902829]
[1760824227212,101.4,187.31,187.3,6.02902829]
[1760824227911,101.4,187.31,187.3,5.33902829]
[1760824228620,101.4,187.31,187.3,6.02902829]
[1760824231017,101.4,187.31,187.3,9.49188853]
[1760824231204,3.46286024,187.37,187.3,22.83945927]
[1760824231408,3.59562333,187.36,187.31,4.15286024]
[1760824231613,3.59562333,187.36,187.3,18.68659903]
[1760824231614,3.59562333,187.35,187.33,3.46286024]
[1760824231811,0.35,187.37,187.33,4.15286024]
[1760824232004,3.59527274,187.36,187.33,4.15286024]
[1760824232206,0.35,187.37,187.33,4.15286024]
[1760824232207,3.59527274,187.35,187.34,0.69]
[1760824232426,14.7,187.37,187.34,0.69]
[1760824232626,3.59487901,187.36,187.34,0.69]
[1760824232923,14.7,187.37,187.35,5.33760341]
[1760824233123,3.59487988,187.36,187.35,5.33760341]
[1760824234399,3.59487988,187.36,187.34,18.68258871]
[1760824234605,14.7,187.37,187.34,19.37258871]
[1760824234799,3.59420013,187.36,187.34,19.37258871]
[1760824235019,14.7,187.37,187.34,19.37258871]
[1760824235217,3.59420079,187.36,187.34,19.37258871]
[1760824235400,14.7,187.37,187.34,19.37258871]
[1760824235631,3.59392285,187.36,187.34,19.37258871]
[1760824235829,14.7,187.37,187.34,19.37258871]
[1760824236031,3.59392285,187.36,187.34,19.37258871]
[1760824236244,14.7,187.37,187.34,19.37258871]
[1760824236437,3.59372803,187.36,187.34,19.37258871]
[1760824236638,14.7,187.37,187.34,19.37258871]
[1760824236836,3.59372803,187.36,187.34,18.68258871]
[1760824237149,14.7,187.37,187.36,5.33731853]
[1760824237343,18.29379428,187.37,187.36,5.33731853]
[1760824238549,18.29379428,187.37,187.35,5.33760341]
[1760824238756,14.7,187.37,187.35,5.33760341]
[1760824238933,14.7,187.37,187.35,6.02760341]
[1760824243647,14.7,187.37,187.34,5.33782446]
[1760824243949,105.21286024,187.36,187.31,0.68]
[1760824244148,3.94336355,187.35,187.3,4.14286024]
[1760824244352,104.86286024,187.36,187.3,4.14286024]
[1760824244548,3.94385673,187.35,187.3,4.14286024]
[1760824244746,0.35,187.35,187.3,4.14286024]
[1760824245344,0.35,187.35,187.31,5.33868193]
[1760824245749,0.35,187.35,187.31,6.01868193]
[1760824247662,0.35,187.34,187.31,5.33868193]
[1760824248649,104.86286024,187.36,187.3,6.01902829]
[1760824248856,0.35,187.34,187.3,6.01902829]
[1760824249254,0.35,187.34,187.3,9.48188853]
[1760824249657,104.86286024,187.36,187.31,6.01854465]
[1760824249963,3.59632206,187.35,187.31,6.01854465]
[1760824250256,104.99632206,187.34,187.31,5.33854465]
[1760824250461,101.4,187.34,187.31,6.01854465]
[1760824250954,3.59699357,187.33,187.31,6.01854465]
[1760824251162,101.4,187.34,187.3,8.80184749]
[1760824251349,3.59714998,187.33,187.3,6.01898725]
[1760824251657,101.75,187.34,187.3,6.01898725]
[1760824251849,3.59788209,187.33,187.3,6.01898725]
[1760824252048,101.75,187.34,187.3,6.01898725]
[1760824252350,3.59788209,187.33,187.3,5.33898725]
[1760824252555,3.59788209,187.32,187.31,0.68]
[1760824254445,3.59788209,187.32,187.3,5.33898725]
[1760824254642,101.75,187.34,187.3,6.01898725]
[1760824254844,3.60004439,187.33,187.3,6.01898725]
[1760824255052,3.60004439,187.32,187.3,5.33898725]
[1760824255250,0.35,187.33,187.3,5.33898725]
[1760824255452,3.60038002,187.32,187.3,6.01898725]
[1760824255640,101.4,187.34,187.3,6.01898725]
[1760824255641,101.75,187.34,187.3,6.01898725]
[1760824255841,3.60037936,187.33,187.3,6.01898725]
[1760824256048,3.60037936,187.32,187.3,6.01898725]
[1760824256247,101.75,187.34,187.3,6.01898725]
[1760824256447,3.60073602,187.33,187.3,6.01898725]
[1760824256648,3.60073602,187.32,187.3,6.01898725]
[1760824256942,101.75,187.34,187.3,6.01898725]
[1760824257143,3.60073471,187.33,187.3,6.01898725]
[1760824257351,3.60073471,187.32,187.31,0.68]
[1760824267667,3.60073471,187.32,187.31,6.01874325]
[1760824289592,3.60073471,187.32,187.3,5.33902829]
[1760824289892,3.60073471,187.31,187.3,6.05902829]
[1760824311814,3.60073471,187.31,187.3,22.11339909]
[1760824312116,3.60073471,187.31,187.3,25.57625933]
[1760824316023,101.4,187.34,187.3,38.92383007]
[1760824316203,3.60787279,187.33,187.31,4.13286024]
[1760824316406,3.60787279,187.32,187.31,3.46286024]
[1760824316620,3.60787279,187.32,187.31,19.51637194]
[1760824316923,3.60787279,187.32,187.31,20.18637194]
[1760824317430,101.4,187.34,187.32,5.33845825]
[1760824317612,3.60695721,187.33,187.32,6.00845825]
[1760824317921,14.7,187.37,187.32,22.81746412]
[1760824318120,3.60684288,187.36,187.35,26.34286024]
[1760824318312,3.60684288,187.36,187.35,27.01286024]
[1760824319424,3.60684288,187.36,187.35,47.05046365]
[1760824320213,3.60684288,187.36,187.35,20.03760341]
[1760824320411,3.60684288,187.36,187.35,14.7]
[1760824320619,3.95684288,187.36,187.33,6.00811199]
[1760824320924,3.60684288,187.35,187.34,4.49163985]
[1760824321318,3.95684288,187.35,187.33,5.33811199]
[1760824321524,3.60684288,187.34,187.33,8.94495487]
[1760824322624,3.60684288,187.34,187.33,3.60684288]
[1760824324223,3.60684288,187.34,187.32,5.33844756]
[1760824324424,3.60684288,187.33,187.32,5.33844756]
[1760824325128,3.60684288,187.33,187.32,8.94529044]
[1760824326207,3.60684288,187.33,187.3,5.33896552]
[1760824326410,3.60684288,187.32,187.3,5.33896552]
[1760824326610,3.81286024,187.33,187.3,21.39333632]
[1760824326819,3.60359138,187.32,187.3,22.06333632]
[1760824327019,3.46286024,187.33,187.3,22.06333632]
[1760824327313,3.60359116,187.32,187.3,22.06333632]
[1760824327533,3.46286024,187.33,187.3,22.06333632]
[1760824327734,3.60361037,187.32,187.3,22.06333632]
[1760824328032,3.46286024,187.33,187.3,22.06333632]
[1760824328221,3.60361037,187.32,187.3,22.06333632]
[1760824328420,3.46286024,187.33,187.3,6.00896552]
[1760824328630,3.6035921,187.32,187.31,3.60361037]
[1760824329016,3.9535921,187.32,187.31,3.60361037]
[1760824329537,7.41645234,187.32,187.27,5.99963918]
[1760824329734,105.3535921,187.31,187.28,16.05608927]
[1760824329923,3.6035921,187.3,187.28,16.05608927]
[1760824330112,105.21286024,187.31,187.28,16.05608927]
[1760824330313,3.60385046,187.3,187.28,16.05608927]
[1760824330527,104.86286024,187.31,187.28,16.05608927]
[1760824330727,3.95361908,187.3,187.28,16.05608927]
[1760824330931,3.81286024,187.3,187.26,6.00009519]
[1760824331129,3.60381432,187.29,187.26,22.05618446]
[1760824331327,3.81286024,187.3,187.26,22.05618446]
[1760824331522,3.60312615,187.29,187.26,22.05618446]
[1760824331833,105.21286024,187.31,187.26,22.05618446]
[1760824332032,3.95318425,187.3,187.26,22.05618446]
[1760824332334,3.60318425,187.29,187.26,22.05618446]
[1760824332531,3.60265911,187.28,187.26,22.05618446]
[1760824332717,3.46286024,187.29,187.24,6.20047753]
[1760824332922,3.6026602,187.28,187.24,6.20047753]
[1760824333229,3.6026602,187.27,187.24,6.20047753]
[1760824333533,3.6026602,187.27,187.24,21.60000484]
[1760824333534,0.35,187.27,187.24,21.60000484]
[1760824333724,0.35,187.28,187.24,0.88]
[1760824333919,3.60179065,187.27,187.24,0.88]
[1760824334125,0.35,187.28,187.24,0.88]
[1760824334330,3.60179065,187.27,187.24,0.88]
[1760824334525,0.35,187.28,187.24,0.88]
[1760824334734,3.6004228,187.27,187.24,0.88]
[1760824334925,0.35,187.28,187.24,0.88]
[1760824335230,3.6004228,187.27,187.24,0.88]
[1760824335434,0.35,187.28,187.24,0.88]
[1760824335634,3.59926932,187.27,187.24,6.21907702]
[1760824335836,3.81286024,187.28,187.24,6.21907702]
[1760824336134,104.99926932,187.27,187.24,0.88]
[1760824336340,101.4,187.27,187.24,0.88]
[1760824339641,101.75,187.27,187.24,0.2]
[1760824341443,101.4,187.27,187.24,0.88]
[1760824341957,101.4,187.26,187.24,0.88]
[1760824343339,101.4,187.26,187.25,0.68]
[1760824346229,101.4,187.26,187.25,6.02045393]
[1760824346423,101.4,187.26,187.25,9.48331417]
[1760824347344,101.4,187.33,187.25,22.83444901]
[1760824347530,101.4,187.33,187.27,3.46286024]
[1760824347531,3.59238535,187.32,187.27,3.46286024]
[1760824347731,3.59238535,187.31,187.29,5.33931336]
[1760824347933,3.59238535,187.32,187.3,0.68]
[1760824348126,3.59238535,187.31,187.3,0.68]
[1760824348335,3.59238535,187.32,187.3,0.68]
[1760824349358,104.86286024,187.33,187.3,0.68]
[1760824349938,104.86286024,187.33,187.3,6.0189326]
[1760824350146,101.4,187.33,187.31,0.68]
[1760824352447,101.4,187.33,187.31,6.01868651]
[1760824352751,101.4,187.33,187.32,0.68]
[1760824354481,101.4,187.33,187.32,6.01845825]
[1760824354957,3.46286024,187.37,187.32,19.36460388]
[1760824355152,0.35,187.39,187.33,0.68]
[1760824355153,3.59126132,187.38,187.33,0.68]
[1760824355351,3.59126132,187.37,187.33,0.68]
[1760824355658,3.59126132,187.38,187.33,0.68]
[1760824355867,3.59126132,187.37,187.33,0.68]
[1760824356777,3.59126132,187.37,187.34,5.33788833]
[1760824356955,3.59126132,187.37,187.35,0.68]
[1760824357156,3.46286024,187.38,187.36,0.68]
[1760824357356,7.05412156,187.38,187.36,0.68]
[1760824357572,3.46286024,187.38,187.36,6.01727656]
[1760824357758,7.05412156,187.38,187.37,0.68]
[1760824357959,3.46286024,187.38,187.37,0.68]
[1760824358173,7.05412156,187.38,187.37,0.68]
[1760824358375,3.46286024,187.38,187.37,0.68]
[1760824359175,104.86286024,187.4,187.37,0.68]
[1760824359972,104.86286024,187.4,187.37,6.01684382]
[1760824360458,104.86286024,187.4,187.38,0.68]
[1760824361365,104.86286024,187.4,187.38,0.356]
[1760824362668,101.4,187.39,187.38,0.356]
[1760824363587,101.4,187.39,187.38,5.69274885]
[1760824367667,3.46286024,187.41,187.38,5.69274885]
[1760824367963,4.13286024,187.42,187.38,5.69274885]
[1760824368163,4.13286024,187.42,187.38,5.98674885]
[1760824368380,4.13286024,187.42,187.39,0.65]
[1760824368971,3.58520667,187.43,187.39,5.33621542]
[1760824369170,7.04806691,187.43,187.4,0.65]
[1760824369682,7.71806691,187.43,187.39,5.98621542]
[1760824370289,7.71806691,187.43,187.39,5.33621542]
[1760824370482,7.71806691,187.43,187.37,13.34190702]
[1760824370483,7.04806691,187.43,187.4,0.65]
[1760824371368,7.04806691,187.43,187.37,18.67894069]
[1760824371369,7.04806691,187.43,187.41,0.65]
[1760824373591,7.04806691,187.43,187.38,5.33674885]
[1760824373792,7.71806691,187.43,187.39,0.65]
[1760824373979,7.04806691,187.43,187.39,0.65]
[1760824374168,3.58520667,187.43,187.39,0.65]
[1760824374784,104.86286024,187.44,187.39,0.65]
[1760824376275,105.53286024,187.44,187.4,5.33617929]
[1760824376477,105.53286024,187.44,187.41,0.65]
[1760824378592,105.53286024,187.44,187.42,5.33560986]
[1760824378902,101.4,187.44,187.42,5.33560986]
[1760824379397,101.4,187.44,187.42,5.98560986]
[1760824382389,102.07,187.44,187.42,5.33560986]